fUSD/lending_fUSD_20240428
["ID","MTS","AMOUNT","RATE_DAILY","PERIOD"]
[323775595,1714282254659,-500.0,0.00020695,2]
[323775596,1714282254668,-500.0,0.00020695,2]
[323775597,1714282254678,-500.0,0.00020695,2]
[323775598,1714282254688,-466.298568,0.00020695,2]
[323775599,1714282254697,-500.0,0.00020695,2]
[323775600,1714282254707,-466.298568,0.00020695,2]
[323775601,1714282254716,-500.0,0.00020695,2]
[323775602,1714282254726,-728.7,0.00020695,2]
[323775603,1714282254736,-151.0,0.00020695,2]
[323775604,1714282254749,-648.84,0.00020695,2]
[323775605,1714282254758,-6350.8,0.00020695,2]
[323775606,1714282254767,-1569.05,0.00020695,2]
[323775607,1714282254777,-500.0,0.00020695,2]
[323775608,1714282254786,-157.671603,0.00020695,2]
[323775609,1714282254795,-1126.44,0.00020695,2]
[323775610,1714282254805,-628.64,0.00020695,2]
[323775611,1714282254816,-502.07862394,0.00020695,2]
[323775612,1714282254826,-453.925063,0.00020695,2]
[323775613,1714282254836,-597.2,0.00020695,2]
[323775614,1714282254846,-1640.6,0.00020695,2]
[323775615,1714282254857,-453.925063,0.00020695,2]
[323775616,1714282254871,-500.0,0.00020695,2]
[323775617,1714282254882,-500.0,0.00020695,2]
[323775618,1714282254892,-500.0,0.00020695,2]
[323775619,1714282254901,-7732.3,0.00020695,2]
[323775620,1714282254911,-500.0,0.00020695,2]
[323775621,1714282254920,-500.93503239,0.00020695,2]
[323775622,1714282254929,-500.0,0.00020695,2]
[323775623,1714282254938,-500.0,0.00020695,2]
[323775624,1714282254948,-500.0,0.00020695,2]
[323775625,1714282254957,-500.0,0.00020695,2]
[323775626,1714282254967,-500.0,0.00020695,2]
[323775627,1714282254976,-500.0,0.00020695,2]
[323775628,1714282254985,-500.0,0.00020695,2]
[323775629,1714282254995,-502.06491806,0.00020695,2]
[323775630,1714282255004,-500.0,0.00020695,2]
[323775631,1714282255013,-500.0,0.00020695,2]
[323775632,1714282255023,-444.54262939,0.00020695,2]
[323775633,1714282255031,-500.0,0.00020695,2]
[323775634,1714282255041,-500.0,0.00020695,2]
[323775635,1714282255050,-501.82982201,0.00020695,2]
[323775636,1714282255059,-500.0,0.00020695,2]
[323775637,1714282255069,-500.0,0.00020695,2]
[323775638,1714282255078,-1268.08,0.00020695,2]
[323775639,1714282255087,-500.0,0.00020695,2]
[323775640,1714282255096,-500.0,0.00020695,2]
[323775641,1714282255105,-650.89,0.00020695,2]
[323775642,1714282255114,-595.1,0.00020695,2]
[323775643,1714282255124,-976.63,0.00020695,2]
[323775644,1714282255133,-500.0,0.00020695,2]
[323775645,1714282255143,-500.0,0.00020695,2]
[323775646,1714282255154,-151.0,0.00020695,2]
[323775647,1714282255163,-500.0,0.00020695,2]
[323775648,1714282255172,-566.56,0.00020695,2]
[323775649,1714282255182,-500.0,0.00020695,2]
[323775650,1714282255193,-500.0,0.00020695,2]
[323775651,1714282255202,-500.0,0.00020695,2]
[323775652,1714282255211,-500.0,0.00020695,2]
[323775653,1714282255222,-289.33263063,0.00020695,2]
[323775654,1714282255231,-500.0,0.00020695,2]
[323775655,1714282255241,-500.0,0.00020695,2]
[323775656,1714282255251,-500.0,0.00020695,2]
[323775657,1714282255260,-500.0,0.00020695,2]
[323775658,1714282255269,-500.0,0.00020695,2]
[323775659,1714282255279,-508.96,0.00020695,2]
[323775660,1714282255288,-614.05,0.00020695,2]
[323775661,1714282255297,-500.0,0.00020695,2]
[323775662,1714282255307,-617.17,0.00020695,2]
[323775663,1714282255317,-500.0,0.00020695,2]
[323775664,1714282255327,-151.0,0.00020696,2]
[323775665,1714282255336,-4743.53,0.00020696,2]
[323775666,1714282255346,-507.26506839,0.00020696,2]
[323775667,1714282255355,-1604.88,0.00020696,2]
[323775668,1714282255365,-2052.47,0.00020696,2]
[323775669,1714282255374,-5205.57,0.00020696,2]
[323775670,1714282255384,-2374.0,0.00020696,2]
[323775671,1714282255394,-2407.27,0.00020696,2]
[323775672,1714282255403,-1081.86,0.00020696,2]
[323775673,1714282255413,-9581.68,0.00020696,2]
[323775674,1714282255423,-4618.48,0.00020696,2]
[323775675,1714282255433,-26761.82,0.00020696,2]
[323775676,1714282255442,-1739.16,0.00020696,2]
[323775677,1714282255452,-453.925063,0.00020696,2]
[323775678,1714282255461,-453.925063,0.00020696,2]
[323775679,1714282255471,-3353.98,0.00020696,2]
[323775680,1714282255481,-13356.58,0.00020696,2]
[323775681,1714282255491,-1140.32,0.00020696,2]
[323775682,1714282255501,-1847.54,0.00020696,2]
[323775683,1714282255511,-1932.11,0.00020696,2]
[323775684,1714282255521,-5606.17,0.00020696,2]
[323775685,1714282255530,-842856.97337162,0.00020697,2]
[323775686,1714282256174,-373.5132,0.00020697,2]
[323775687,1714282257095,-408.72404742,0.00010467,2]
[323775688,1714282257105,-945.94,0.00019606,2]
[323775689,1714282257114,-5000.0,0.00019998,2]
[323775690,1714282257123,-500.0,0.00019999,2]
[323775691,1714282257133,-500.0,0.00019999,2]
[323775692,1714282257144,-500.0,0.00020273,2]
[323775693,1714282257156,-500.0,0.00020273,2]
[323775694,1714282257168,-503.5250255,0.00020547,2]
[323775695,1714282257177,-500.0,0.00020547,2]
[323775696,1714282257185,-1671.53,0.00020695,2]
[323775697,1714282257195,-22531.28092708,0.00020697,2]
[323775698,1714282257207,-822.96548089,0.00020697,2]
[323775699,1714282257220,-492.40673128,0.00020697,2]
[323775700,1714282257241,-6327.01232262,0.00020697,2]
[323775701,1714282544418,150.0,8e-05,2]
[323775702,1714282544444,150.0,8e-05,2]
[323775703,1714282544469,150.0,8e-05,2]
[323775704,1714282544491,150.0,8e-05,2]
[323775705,1714282544512,150.0,8e-05,2]
[323775706,1714282544531,150.0,8e-05,2]
[323775707,1714282544553,150.0,8e-05,2]
[323775708,1714282544575,150.0,8e-05,2]
[323775709,1714282544596,150.0,8e-05,2]
[323775710,1714282544616,150.0,8e-05,2]
[323775711,1714282544640,150.0,8e-05,2]
[323775712,1714282544660,150.0,8e-05,2]
[323775713,1714282544682,150.0,8e-05,2]
[323775714,1714282544704,150.0,8e-05,2]
[323775715,1714282544723,150.0,8e-05,2]
[323775716,1714282544744,150.0,8e-05,2]
[323775717,1714282544771,150.0,8e-05,2]
[323775718,1714282544799,150.0,8e-05,2]
[323775719,1714282544821,150.0,8e-05,2]
[323775720,1714282544841,150.0,8e-05,2]
[323775721,1714282544861,150.0,8e-05,2]
[323775722,1714282544881,150.0,8e-05,2]
[323775723,1714282544903,150.0,8e-05,2]
[323775724,1714282544926,150.0,8e-05,2]
[323775725,1714282544959,12930.3,8e-05,2]
[323775744,1714283432442,-236.65157251,0.00014851,2]
[323775745,1714283432452,-370.19548805,0.00014852,2]
[323775746,1714283432461,-162.17689798,0.00014853,2]
[323775747,1714283432471,-194.49480945,0.00014854,2]
[323775748,1714283432480,-155.0,0.00014855,2]
[323775749,1714283432490,-251.74141407,0.00014856,2]
[323775750,1714283432499,-1540.6255,0.00014886,2]
[323775751,1714283432510,-180.93813135,0.00014888,2]
[323775752,1714283432522,-318.15,0.00016636,2]
[323775753,1714283432531,-150.0,0.00017014,2]
[323775754,1714283432541,-169.2,0.00018258,10]
[323775755,1714283432551,-452.07,0.0001832,2]
[323775756,1714283432564,-200.0,0.0001834,2]
[323775757,1714283432575,-532.9,0.00018402,2]
[323775758,1714283432584,-445.57,0.00018402,2]
[323775759,1714283432594,-500.0,0.00018422,2]
[323775760,1714283432604,-150.81,0.00018464,2]
[323775761,1714283432613,-158.04,0.00018629,2]
[323775762,1714283432623,-150.0,0.00018654,2]
[323775763,1714283432633,-389.25,0.00018744,2]
[323775764,1714283432642,-250.0,0.00018751,2]
[323775765,1714283432652,-150.0,0.00018809,2]
[323775766,1714283432661,-318.15,0.00018899,2]
[323775767,1714283432671,-266.22,0.00019004,2]
[323775768,1714283432682,-150.0,0.00019109,2]
[323775769,1714283432692,-1000.0,0.0001911,2]
[323775770,1714283432702,-165.76,0.00019145,2]
[323775771,1714283432712,-150.0,0.00019179,2]
[323775772,1714283432722,-160.7,0.00019307,2]
[323775773,1714283432732,-161.45,0.00019334,2]
[323775774,1714283432742,-150.0,0.00019589,2]
[323775775,1714283432752,-13330.40619659,0.00019603,2]
[323775777,1714283432764,-1647.10744656,0.00019603,2]
[323775780,1714283432785,-7846.49346907,0.00019603,2]
[323775783,1714283432796,-2153.77853093,0.00019604,2]
[323775785,1714283432814,-1028.04101158,0.00019604,2]
[323775787,1714283432824,-425.0886962,0.00019605,2]
[323775789,1714283432834,-1471.61034846,0.00019888,2]
[323775791,1714283432848,-684.71908266,0.00019888,2]
[323775811,1714283438821,-150.0,0.00018552,2]
[323775812,1714283438830,-1489.89816888,0.00019888,2]
[323775813,1714283438840,-5071.50183112,0.000199,2]
[323775814,1714283438853,-3088.89999993,0.000199,2]
[323775815,1714283438920,-1867.97612584,0.000199,2]
[323775816,1714283438931,-150.0,0.00019917,2]
[323775817,1714283438941,-150.0,0.00019945,2]
[323775818,1714283438951,-150.0,0.00019955,2]
[323775819,1714283438961,-151.93,0.00019987,2]
[323775820,1714283438971,-57696.80525872,0.00019988,2]
[323775821,1714283438980,-155.15597946,0.00019988,2]
[323775822,1714283438990,-151.93,0.00019988,2]
[323775823,1714283439000,-500.0,0.00019996,2]
[323775824,1714283439009,-2456.94,0.00019996,2]
[323775825,1714283439020,-2579.98,0.00019996,2]
[323775826,1714283439029,-988.96,0.00019996,2]
[323775827,1714283439038,-2552.85,0.00019996,2]
[323775828,1714283439047,-500.0,0.00019996,2]
[323775829,1714283439056,-3041.11,0.00019996,2]
[323775830,1714283439065,-808.9,0.00019996,2]
[323775831,1714283439077,-11556.34,0.00019996,2]
[323775832,1714283439087,-3347.25,0.00019996,2]
[323775833,1714283439097,-17669.58,0.00019996,2]
[323775834,1714283439106,-1426.7,0.00019996,2]
[323775835,1714283439115,-2922.27,0.00019996,2]
[323775836,1714283439124,-500.0,0.00019996,2]
[323775837,1714283439133,-5181.9,0.00019996,2]
[323775838,1714283439142,-11847.33,0.00019996,2]
[323775839,1714283439151,-3269.72,0.00019996,2]
[323775840,1714283439160,-2751.24,0.00019996,2]
[323775841,1714283439169,-2191.38,0.00019996,2]
[323775842,1714283439179,-5188.61,0.00019996,2]
[323775843,1714283439188,-1844.05,0.00019996,2]
[323775844,1714283439198,-8810.71,0.00019996,2]
[323775845,1714283439208,-500.0,0.00019996,2]
[323775846,1714283439217,-1164.6,0.00019996,2]
[323775847,1714283439228,-500.0,0.00019996,2]
[323775848,1714283439238,-500.0,0.00019996,2]
[323775849,1714283439247,-1496.67,0.00019996,2]
[323775850,1714283439257,-1186.20667968,0.00019997,2]
[323775851,1714283439267,-892.85048398,0.00019997,2]
[323775852,1714283439276,-340.11600987,0.00019997,2]
[323775853,1714283439286,-1923.75658816,0.00019997,2]
[323775854,1714283439295,-2478.22537668,0.00019997,2]
[323775855,1714283439305,-1582.28825957,0.00019997,2]
[323775856,1714283439315,-442.62190874,0.00019997,2]
[323775857,1714283439324,-155.24125363,0.00019997,2]
[323775858,1714283439335,-262.37214807,0.00019997,2]
[323775859,1714283439345,-211.06133864,0.00019997,2]
[323775860,1714283439354,-193.14368114,0.00019997,2]
[323775861,1714283439364,-539.45421001,0.00019997,2]
[323775862,1714283439373,-554.91863656,0.00019997,2]
[323775863,1714283439384,-500.0,0.00019997,2]
[323775864,1714283439394,-274.41098122,0.00019997,2]
[323775865,1714283439404,-500.0,0.00019997,2]
[323775866,1714283439413,-500.0,0.00019997,2]
[323775867,1714283439423,-500.0,0.00019997,2]
[323775868,1714283439433,-786.26,0.00019997,2]
[323775869,1714283439442,-500.0,0.00019997,2]
[323775870,1714283439452,-502.26667289,0.00019997,2]
[323775871,1714283439461,-627.23,0.00019997,2]
[323775872,1714283439471,-537.45,0.00019997,2]
[323775873,1714283439480,-500.0,0.00019997,2]
[323775874,1714283439489,-500.0,0.00019997,2]
[323775875,1714283439499,-519.15,0.00019997,2]
[323775876,1714283439509,-736.97,0.00019997,2]
[323775877,1714283439522,-959.92,0.00019997,2]
[323775878,1714283439531,-973.94,0.00019997,2]
[323775879,1714283439541,-726.46,0.00019997,2]
[323775880,1714283439550,-500.0,0.00019997,2]
[323775881,1714283439559,-500.0,0.00019997,2]
[323775882,1714283439570,-500.0,0.00019997,2]
[323775883,1714283439580,-500.0,0.00019997,2]
[323775884,1714283439590,-601.21,0.00019997,2]
[323775885,1714283439599,-500.0,0.00019997,2]
[323775886,1714283439608,-777.15,0.00019997,2]
[323775887,1714283439618,-500.0,0.00019997,2]
[323775888,1714283439627,-500.0,0.00019997,2]
[323775889,1714283439638,-731.54,0.00019997,2]
[323775890,1714283439648,-500.0,0.00019997,2]
[323775891,1714283439657,-1690.55,0.00019997,2]
[323775892,1714283439667,-500.0,0.00019997,2]
[323775893,1714283439676,-500.0,0.00019997,2]
[323775894,1714283439686,-500.0,0.00019997,2]
[323775895,1714283439696,-1027.3,0.00019997,2]
[323775896,1714283439707,-500.0,0.00019997,2]
[323775897,1714283439717,-835.26,0.00019997,2]
[323775898,1714283439726,-500.0,0.00019997,2]
[323775899,1714283439738,-500.0,0.00019997,2]
[323775900,1714283439748,-3200.2,0.00019997,2]
[323775901,1714283439758,-500.0,0.00019997,2]
[323775902,1714283439767,-500.0,0.00019997,2]
[323775903,1714283439777,-500.0,0.00019997,2]
[323775904,1714283439786,-542.1,0.00019997,2]
[323775905,1714283439795,-500.0,0.00019997,2]
[323775906,1714283439805,-500.0,0.00019997,2]
[323775907,1714283439815,-663.26,0.00019997,2]
[323775908,1714283439825,-500.0,0.00019997,2]
[323775909,1714283439834,-565.7,0.00019997,2]
[323775910,1714283439843,-2343.39,0.00019997,2]
[323775911,1714283439852,-163.63431531,0.00019997,2]
[323775912,1714283439863,-577.85,0.00019997,2]
[323775913,1714283439872,-500.0,0.00019997,2]
[323775914,1714283439882,-500.0,0.00019997,2]
[323775915,1714283439894,-529.6,0.00019997,2]
[323775916,1714283439903,-500.0,0.00019997,2]
[323775917,1714283439912,-721.88,0.00019997,2]
[323775918,1714283439922,-500.0,0.00019997,2]
[323775919,1714283439931,-500.0,0.00019997,2]
[323775920,1714283439943,-500.0,0.00019997,2]
[323775921,1714283439953,-43697.23,0.00019997,2]
[323775922,1714283439962,-500.0,0.00019997,2]
[323775923,1714283439972,-565.55,0.00019997,2]
[323775924,1714283439981,-1516.45,0.00019997,2]
[323775925,1714283439991,-500.0,0.00019997,2]
[323775926,1714283440001,-500.0,0.00019997,2]
[323775927,1714283440010,-500.0,0.00019997,2]
[323775928,1714283440020,-4692.28,0.00019997,2]
[323775929,1714283440030,-723.02,0.00019997,2]
[323775930,1714283440039,-1119.63,0.00019997,2]
[323775931,1714283440049,-3809.59,0.00019997,2]
[323775932,1714283440058,-500.0,0.00019997,2]
[323775933,1714283440069,-500.0,0.00019997,2]
[323775936,1714283440303,-746.11,0.00019997,2]
[323775937,1714283440314,-2915.32,0.00019997,2]
[323775938,1714283440323,-1185.74,0.00019997,2]
[323775939,1714283440332,-500.0,0.00019997,2]
[323775940,1714283440342,-554.15,0.00019997,2]
[323775941,1714283440351,-500.0,0.00019997,2]
[323775942,1714283440361,-500.0,0.00019997,2]
[323775943,1714283440370,-2816.01,0.00019997,2]
[323775944,1714283440380,-500.0,0.00019997,2]
[323775945,1714283440389,-669.66,0.00019997,2]
[323775946,1714283440400,-500.0,0.00019997,2]
[323775947,1714283440409,-500.0,0.00019997,2]
[323775948,1714283440418,-604.28,0.00019997,2]
[323775949,1714283440428,-2643.63,0.00019997,2]
[323775950,1714283440438,-500.0,0.00019997,2]
[323775951,1714283440448,-1619.3,0.00019997,2]
[323775952,1714283440458,-500.0,0.00019997,2]
[323775953,1714283440467,-500.0,0.00019997,2]
[323775954,1714283440477,-1202.14,0.00019997,2]
[323775955,1714283440487,-558.87,0.00019997,2]
[323775956,1714283440496,-569.96,0.00019997,2]
[323775957,1714283440505,-563.47,0.00019997,2]
[323775958,1714283440519,-14027.82,0.00019997,2]
[323775959,1714283440529,-706.25,0.00019997,2]
[323775960,1714283440539,-2367.96,0.00019997,2]
[323775961,1714283440549,-524.77,0.00019997,2]
[323775962,1714283440561,-500.0,0.00019997,2]
[323775963,1714283440571,-2656.02,0.00019997,2]
[323775964,1714283440581,-500.0,0.00019997,2]
[323775965,1714283440592,-500.0,0.00019997,2]
[323775966,1714283440602,-571.0,0.00019997,2]
[323775967,1714283440612,-1130.4,0.00019997,2]
[323775968,1714283440621,-2280.5,0.00019997,2]
[323775969,1714283440631,-500.0,0.00019997,2]
[323775970,1714283440640,-500.0,0.00019997,2]
[323775971,1714283440650,-500.0,0.00019997,2]
[323775972,1714283440659,-518.08,0.00019997,2]
[323775973,1714283440669,-500.0,0.00019997,2]
[323775974,1714283440679,-500.0,0.00019997,2]
[323775975,1714283440689,-506.81879911,0.00019997,2]
[323775976,1714283440698,-2481.47,0.00019997,2]
[323775977,1714283440708,-500.0,0.00019997,2]
[323775978,1714283440717,-500.0,0.00019997,2]
[323775979,1714283440727,-951.92,0.00019997,2]
[323775980,1714283440736,-500.0,0.00019997,2]
[323775981,1714283440746,-2686.77,0.00019997,2]
[323775982,1714283440755,-500.0,0.00019997,2]
[323775983,1714283440764,-500.0,0.00019997,2]
[323775984,1714283440774,-500.0,0.00019997,2]
[323775985,1714283440783,-500.0,0.00019997,2]
[323775986,1714283440793,-500.0,0.00019997,2]
[323775987,1714283440802,-7751.62,0.00019997,2]
[323775988,1714283440811,-500.0,0.00019997,2]
[323775990,1714283440822,-500.0,0.00019997,2]
[323775992,1714283440831,-540.66,0.00019997,2]
[323775994,1714283440840,-500.0,0.00019997,2]
[323775996,1714283440850,-924.49,0.00019997,2]
[323775998,1714283440859,-8709.56,0.00019997,2]
[323776000,1714283440868,-504.00165564,0.00019997,2]
[323776001,1714283440877,-504.16512471,0.00019997,2]
[323776002,1714283440888,-500.0,0.00019997,2]
[323776003,1714283440897,-547.0,0.00019997,2]
[323776004,1714283440907,-500.0,0.00019997,2]
[323776005,1714283440917,-500.0,0.00019997,2]
[323776006,1714283440926,-500.0,0.00019997,2]
[323776007,1714283440936,-500.0,0.00019997,2]
[323776008,1714283440946,-713.1,0.00019997,2]
[323776009,1714283440955,-500.0,0.00019997,2]
[323776010,1714283440964,-1133.24,0.00019997,2]
[323776011,1714283440974,-1600.92,0.00019997,2]
[323776012,1714283440984,-2092.61,0.00019997,2]
[323776013,1714283440993,-500.0,0.00019997,2]
[323776014,1714283441003,-885.88,0.00019997,2]
[323776015,1714283441012,-504.06142925,0.00019997,2]
[323776016,1714283441022,-505.50688429,0.00019997,2]
[323776017,1714283441031,-500.0,0.00019997,2]
[323776018,1714283441040,-510.81,0.00019997,2]
[323776019,1714283441049,-2621.0,0.00019997,2]
[323776020,1714283441059,-500.0,0.00019997,2]
[323776021,1714283441070,-500.0,0.00019997,2]
[323776022,1714283441079,-549.91,0.00019997,2]
[323776023,1714283441088,-500.0,0.00019997,2]
[323776024,1714283441097,-500.0,0.00019997,2]
[323776025,1714283441106,-181.68,0.00019997,2]
[323776026,1714283441116,-500.0,0.00019997,2]
[323776027,1714283441126,-500.0,0.00019997,2]
[323776028,1714283441136,-3617.81,0.00019997,2]
[323776029,1714283441145,-630.01,0.00019997,2]
[323776030,1714283441154,-500.0,0.00019997,2]
[323776031,1714283441164,-2164.59,0.00019997,2]
[323776032,1714283441175,-513.08,0.00019997,2]
[323776033,1714283441185,-500.0,0.00019997,2]
[323776034,1714283441195,-500.0,0.00019997,2]
[323776035,1714283441205,-1003.25,0.00019997,2]
[323776036,1714283441215,-1133.75,0.00019997,2]
[323776037,1714283441226,-500.0,0.00019997,2]
[323776038,1714283441235,-500.0,0.00019997,2]
[323776039,1714283441244,-5081.31,0.00019997,2]
[323776040,1714283441254,-500.0,0.00019997,2]
[323776041,1714283441263,-921.52,0.00019997,2]
[323776042,1714283441272,-500.0,0.00019997,2]
[323776043,1714283441281,-500.0,0.00019997,2]
[323776044,1714283441290,-500.0,0.00019997,2]
[323776045,1714283441299,-500.0,0.00019997,2]
[323776046,1714283441309,-501.93799272,0.00019997,2]
[323776047,1714283441319,-505.96097633,0.00019997,2]
[323776048,1714283441329,-511.05,0.00019997,2]
[323776049,1714283441339,-500.0,0.00019997,2]
[323776050,1714283441349,-500.0,0.00019998,2]
[323776051,1714283441359,-693.82,0.00019998,2]
[323776052,1714283441369,-501.70292962,0.00019998,2]
[323776053,1714283441378,-500.0,0.00019998,2]
[323776054,1714283441387,-501.79715254,0.00019998,2]
[323776055,1714283441396,-500.0,0.00019998,2]
[323776056,1714283441406,-500.0,0.00019998,2]
[323776057,1714283441416,-629.77,0.00019998,2]
[323776058,1714283441426,-1229.04,0.00019998,2]
[323776059,1714283441436,-500.0,0.00019998,2]
[323776060,1714283441445,-500.0,0.00019998,2]
[323776061,1714283441455,-2545.97,0.00019998,2]
[323776062,1714283441464,-500.0,0.00019998,2]
[323776063,1714283441474,-1161.3,0.00019998,2]
[323776064,1714283441484,-500.0,0.00019998,2]
[323776065,1714283441493,-168.78133086,0.00019998,2]
[323776066,1714283441503,-500.0,0.00019998,2]
[323776067,1714283441516,-916.87,0.00019998,2]
[323776068,1714283441525,-500.0,0.00019998,2]
[323776069,1714283441534,-500.0,0.00019998,2]
[323776070,1714283441544,-500.0,0.00019998,2]
[323776071,1714283441555,-500.0,0.00019998,2]
[323776072,1714283441566,-500.0,0.00019998,2]
[323776073,1714283441575,-500.0,0.00019998,2]
[323776074,1714283441584,-297.97049873,0.00019998,2]
[323776075,1714283441595,-451.2342623,0.00019998,2]
[323776076,1714283441606,-500.0,0.00019998,2]
[323776077,1714283441616,-500.0,0.00019998,2]
[323776078,1714283441625,-1794.38,0.00019998,2]
[323776079,1714283441635,-500.0,0.00019998,2]
[323776080,1714283441646,-1603.09,0.00019998,2]
[323776081,1714283441657,-500.0,0.00019998,2]
[323776082,1714283441667,-500.0,0.00019998,2]
[323776083,1714283441677,-1277.83,0.00019998,2]
[323776084,1714283441688,-500.0,0.00019998,2]
[323776085,1714283441697,-205.8552644,0.00019998,2]
[323776086,1714283441706,-500.0,0.00019998,2]
[323776087,1714283441717,-2175.48,0.00019998,2]
[323776088,1714283441727,-500.0,0.00019998,2]
[323776089,1714283441736,-500.0,0.00019998,2]
[323776090,1714283441745,-1506.16,0.00019998,2]
[323776091,1714283441756,-500.0,0.00019998,2]
[323776092,1714283441767,-220.68922654,0.00019998,2]
[323776093,1714283441776,-500.0,0.00019998,2]
[323776094,1714283441785,-200.3591287,0.00019998,2]
[323776095,1714283441796,-928.68,0.00019998,2]
[323776096,1714283441806,-267.80364943,0.00019998,2]
[323776097,1714283441816,-500.0,0.00019998,2]
[323776098,1714283441825,-941.18,0.00019998,2]
[323776099,1714283441834,-500.0,0.00019998,2]
[323776100,1714283441843,-500.0,0.00019998,2]
[323776101,1714283441852,-2178.47,0.00019998,2]
[323776102,1714283441861,-501.75430383,0.00019998,2]
[323776103,1714283441871,-500.0,0.00019998,2]
[323776104,1714283441880,-198.66032312,0.00019998,2]
[323776105,1714283441892,-500.0,0.00019998,2]
[323776106,1714283441902,-500.0,0.00019998,2]
[323776107,1714283441912,-1472.58,0.00019998,2]
[323776108,1714283441922,-500.0,0.00019998,2]
[323776109,1714283441931,-500.0,0.00019998,2]
[323776110,1714283441940,-500.0,0.00019998,2]
[323776111,1714283441949,-500.0,0.00019998,2]
[323776112,1714283441958,-1038.42,0.00019998,2]
[323776113,1714283441967,-1829.15,0.00019998,2]
[323776114,1714283441977,-500.0,0.00019998,2]
[323776115,1714283441986,-501.56063748,0.00019998,2]
[323776116,1714283441996,-502.05183797,0.00019998,2]
[323776117,1714283442006,-1093.21,0.00019998,2]
[323776118,1714283442018,-655.6,0.00019998,2]
[323776119,1714283442030,-501.15373088,0.00019998,2]
[323776120,1714283442042,-500.0,0.00019998,2]
[323776121,1714283442051,-181.45282161,0.00019998,2]
[323776122,1714283442064,-500.0,0.00019998,2]
[323776123,1714283442074,-500.0,0.00019998,2]
[323776124,1714283442085,-501.36785672,0.00019998,2]
[323776125,1714283442094,-500.0,0.00019998,2]
[323776126,1714283442104,-882.07,0.00019998,2]
[323776127,1714283442112,-638.07786141,0.00019998,2]
[323776128,1714283442121,-2234.45,0.00019998,2]
[323776129,1714283442131,-500.0,0.00019998,2]
[323776130,1714283442140,-500.0,0.00019998,2]
[323776131,1714283442149,-555.67867414,0.00019998,2]
[323776132,1714283442158,-1893.28,0.00019998,2]
[323776133,1714283442167,-500.0,0.00019998,2]
[323776134,1714283442176,-500.0,0.00019998,2]
[323776135,1714283442184,-501.05271653,0.00019998,2]
[323776136,1714283442196,-500.0,0.00019998,2]
[323776137,1714283442205,-500.0,0.00019998,2]
[323776138,1714283442215,-1094.02,0.00019998,2]
[323776139,1714283442224,-500.0,0.00019998,2]
[323776140,1714283442233,-500.0,0.00019998,2]
[323776141,1714283442242,-500.0,0.00019998,2]
[323776142,1714283442252,-500.0,0.00019998,2]
[323776143,1714283442261,-500.0,0.00019998,2]
[323776144,1714283442270,-500.79038548,0.00019998,2]
[323776145,1714283442279,-500.0,0.00019998,2]
[323776146,1714283442290,-588.87,0.00019998,2]
[323776147,1714283442300,-500.0,0.00019998,2]
[323776148,1714283442309,-500.0,0.00019998,2]